[Event "CZE-ch Youth G16 2022"]
[Site "Luhacovice"]
[Date "2022.03.12"]
[Round "1.1"]
[White "Voriskova, Anna"]
[Black "Seda, Michaela"]
[Result "1-0"]
[ECO "D35"]
[WhiteElo "1812"]
[BlackElo "1364"]
[Annotator "NA"]
[PlyCount "93"]
[EventDate "2022.03.12"]
[EventType "swiss"]
[EventCountry "CZE"]
[SourceTitle "playchess.com"]
[Source "ChessBase"]
[SourceQuality "1"]
[TimeControl "40/5400+30:1800+30"]

1. d4 {[%emt 0:00:04]} d5 {[%emt 0:00:14]} 2. c4 {[%emt 0:00:17]} e6 {[%emt 0:00:25]} 3. Nc3 {[%emt 0:00:54]} Nf6 {[%emt 0:00:08]} 4. cxd5 {[%emt 0:00:23]} exd5 {[%emt 0:02:48]} 5. Bg5 {[%emt 0:00:30]} Be7 {[%emt 0:01:55]} 6. Qc2 {[%emt 0:00:38]} Nc6 {[%emt 0:01:35]} 7. e3 {[%emt 0:04:56]} a6 {[%emt 0:04:06]} 8. Nf3 {[%emt 0:03:17]} h6 {[%emt 0:01:33]} 9. Bh4 {[%emt 0:01:30]} g5 {[%emt 0:04:31]} 10. Bg3 {[%emt 0:00:49]} Bd6 {[%emt 0:02:57]} 11. Be2 {[%emt 0:06:10]} Ne7 {[%emt 0:03:19]} 12. Be5 {[%emt 0:08:55]} Bxe5 {[%emt 0:01:50]} 13. Nxe5 {[%emt 0:10:50]} Nd7 $16 {[%emt 0:05:55]} ({Better is} 13... Qd6) 14. Nxd7 {[%emt 0:15:02]} Bxd7 {[%emt 0:02:25]} 15. O-O {[%emt 0:00:26]} Bf5 {[%emt 0:01:29]} 16. Qb3 {[%emt 0:03:33]} Rb8 {[%emt 0:03:18]} 17. Bf3 {[%emt 0:02:34]} Be6 {[%emt 0:07:05]} 18. Na4 {[%emt 0:04:09]} b6 {[%emt 0:01:24]} 19. Rac1 {[%emt 0:02:14]} O-O {[%emt 0:05:45]} 20. Qc2 {[%emt 0:01:24]} Rb7 {[%emt 0:01:52]} 21. Be2 {[%emt 0:04:31]} Ra7 {[%emt 0:00:25]} 22. Bd3 {[%emt 0:00:34]} f5 {[%emt 0:02:56]} 23. Nc3 {[%emt 0:03:02]} Qd6 {[%emt 0:02:48]} 24. Qe2 {[%emt 0:06:18]} b5 {[%emt 0:06:02]} 25. f4 {[%emt 0:03:21]} g4 {[%emt 0:01:56]} 26. Nb1 {[%emt 0:00:39]} Rc8 {[%emt 0:02:44]} 27. Rc5 {[%emt 0:02:03]} Nc6 {[%emt 0:06:00]} 28. Rfc1 {[%emt 0:01:16]} Nb8 {[%emt 0:00:14]} 29. Qf2 {[%emt 0:01:00]} Qe7 {[%emt 0:01:52]} 30. Nd2 {[%emt 0:01:28]} c6 {[%emt 0:03:31]} 31. Nb3 {[%emt 0:00:28]} Qc7 {[%emt 0:00:44]} 32. Qh4 {[%emt 0:01:11]} Kg7 {[%emt 0:00:07]} 33. Qh5 {[%emt 0:02:25]} Rf8 {[%emt 0:00:46]} 34. h3 {[%emt 0:03:09]} gxh3 {[%emt 0:01:42]} 35. gxh3 {[%emt 0:00:48]} Rf6 {[%emt 0:01:12]} 36. Kh2 {[%emt 0:00:36]} Qd8 {[%emt 0:03:17]} 37. Nd2 {[%emt 0:02:35]} Bf7 {[%emt 0:01:40]} 38. Qh4 {[%emt 0:00:20]} Qe7 39. Rg1+ {[%emt 0:01:18]} Rg6 {[%emt 0:03:51]} 40. Qf2 {[%emt 0:01:00]} Qe6 {[%emt 0:02:00]} 41. Nf3 {[%emt 0:30:32]} Nd7 {[%emt 0:31:11]} 42. Rcc1 {[%emt 0:00:00]} Kh7 {[%emt 0:00:00]} 43. Nh4 {[%emt 0:00:00]} Rf6 {[%emt 0:00:00]} 44. Qg3 {[%emt 0:00:00]} Bg6 {[%emt 0:00:00]} 45. Bxf5 {[%emt 0:00:00]} Rxf5 {[%emt 0:00:00]} 46. Nxg6 {[%emt 0:00:00]} Nf6 {[%emt 0:00:00]} 47. Nf8+ {[%emt 0:00:00]} 1-0

[Event "CZE-ch Youth G16 2022"]
[Site "Luhacovice"]
[Date "2022.03.12"]
[Round "1.2"]
[White "Mullerova, Karina Nela"]
[Black "Fizerova, Lucie"]
[Result "0-1"]
[ECO "B51"]
[WhiteElo "1250"]
[BlackElo "1804"]
[Annotator "NA"]
[PlyCount "54"]
[EventDate "2022.03.12"]
[EventType "swiss"]
[EventCountry "CZE"]
[SourceTitle "playchess.com"]
[Source "ChessBase"]
[SourceQuality "1"]
[TimeControl "40/5400+30:1800+30"]

1. e4 {[%emt 0:00:03]} c5 {[%emt 0:00:08]} 2. Nf3 {[%emt 0:00:08]} d6 {[%emt 0:00:06]} 3. Bb5+ {[%emt 0:01:27]} Nd7 {[%emt 0:00:21]} 4. d4 {[%emt 0:00:42]} cxd4 {[%emt 0:01:35]} 5. Qxd4 {[%emt 0:01:13]} a6 {[%emt 0:02:20]} 6. Ba4 {[%emt 0:05:04]} Ngf6 {[%emt 0:03:29]} 7. Nc3 {[%emt 0:02:44]} g6 {[%emt 0:04:55]} 8. e5 {[%emt 0:02:45]} dxe5 {[%emt 0:01:16]} 9. Nxe5 {[%emt 0:01:10]} Bg7 {[%emt 0:01:15]} 10. Nxd7 {[%emt 0:01:21]} Bxd7 {[%emt 0:00:21]} 11. Bxd7+ {[%emt 0:00:14]} Qxd7 {[%emt 0:00:11]} 12. Qxd7+ {[%emt 0:00:18]} Nxd7 {[%emt 0:00:32]} 13. Nd5 {[%emt 0:00:47]} Rc8 {[%emt 0:01:33]} 14. c3 {[%emt 0:01:17]} e6 {[%emt 0:01:29]} 15. Nf4 {[%emt 0:02:33]} Rxc3 {[%emt 0:03:54]} 16. O-O {[%emt 0:08:42]} Rc2 {[%emt 0:02:58]} 17. Rb1 {[%emt 0:01:37]} O-O {[%emt 0:01:37]} 18. a3 {[%emt 0:02:25]} Rfc8 {[%emt 0:03:13]} 19. b4 {[%emt 0:03:47]} Ne5 {[%emt 0:03:18]} 20. h4 {[%emt 0:03:40]} Ng4 {[%emt 0:03:27]} 21. Nd3 {[%emt 0:02:13]} Bd4 {[%emt 0:05:35]} 22. Bb2 {[%emt 0:05:00]} Bxb2 {[%emt 0:02:47]} 23. Nxb2 {[%emt 0:02:15]} Rd2 {[%emt 0:04:45]} 24. Nd1 {[%emt 0:07:03]} Rcc2 {[%emt 0:01:14]} 25. a4 {[%emt 0:02:19]} e5 {[%emt 0:01:27]} 26. Rb3 {[%emt 0:03:23]} Rc1 {[%emt 0:01:33]} 27. Rg3 {[%emt 0:02:38]} Rdxd1 {[%emt 0:00:46]} 0-1

[Event "CZE-ch Youth G16 2022"]
[Site "Luhacovice"]
[Date "2022.03.12"]
[Round "1.3"]
[White "Havelkova, Beata"]
[Black "Macova, Marketa"]
[Result "1-0"]
[ECO "C65"]
[WhiteElo "1666"]
[BlackElo "1224"]
[Annotator "NA"]
[PlyCount "33"]
[EventDate "2022.03.12"]
[EventType "swiss"]
[EventCountry "CZE"]
[SourceTitle "playchess.com"]
[Source "ChessBase"]
[SourceQuality "1"]
[TimeControl "40/5400+30:1800+30"]

1. e4 {[%emt 0:00:03]} e5 {[%emt 0:00:08]} 2. Nf3 {[%emt 0:00:07]} Nc6 {[%emt 0:00:07]} 3. Bb5 {[%emt 0:00:07]} Nf6 {[%emt 0:01:08]} 4. O-O {[%emt 0:00:12]} Bc5 {[%emt 0:01:00]} 5. c3 {[%emt 0:00:29]} O-O {[%emt 0:01:34]} 6. d4 {[%emt 0:05:59]} exd4 {[%emt 0:01:03]} 7. cxd4 {[%emt 0:00:15]} Bb6 {[%emt 0:01:23]} 8. e5 {[%emt 0:06:20]} Nd5 {[%emt 0:02:02]} 9. Nc3 {[%emt 0:05:53]} Nxc3 {[%emt 0:06:54]} 10. bxc3 {[%emt 0:00:19]} d6 {[%emt 0:03:05]} 11. Bg5 {[%emt 0:08:46]} Ne7 {[%emt 0:03:28]} 12. Bd3 {[%emt 0:10:59]} Be6 {[%emt 0:04:37]} 13. Qc2 {[%emt 0:01:31]} g6 {[%emt 0:03:18]} 14. Bf6 {[%emt 0:04:36]} Qd7 {[%emt 0:11:38]} 15. Qd2 {[%emt 0:02:31]} Nd5 {[%emt 0:09:18]} 16. Qh6 {[%emt 0:00:41]} Nxf6 {[%emt 0:00:38]} 17. exf6 {[%emt 0:00:08]} 1-0

[Event "CZE-ch Youth G16 2022"]
[Site "Luhacovice"]
[Date "2022.03.12"]
[Round "1.4"]
[White "Smajzrova, Dominika"]
[Black "Nagyova, Daniela"]
[Result "0-1"]
[ECO "C63"]
[WhiteElo "1203"]
[BlackElo "1623"]
[Annotator "NA"]
[PlyCount "92"]
[EventDate "2022.03.12"]
[EventType "swiss"]
[EventCountry "CZE"]
[SourceTitle "playchess.com"]
[Source "ChessBase"]
[SourceQuality "1"]
[TimeControl "40/5400+30:1800+30"]

1. e4 {[%emt 0:00:03]} e5 {[%emt 0:00:11]} 2. Nf3 {[%emt 0:00:09]} Nc6 {[%emt 0:00:09]} 3. Bb5 {[%emt 0:00:11]} f5 {[%emt 0:00:10]} 4. d3 {[%emt 0:02:57]} fxe4 {[%emt 0:00:09]} 5. dxe4 {[%emt 0:00:26]} Nf6 {[%emt 0:01:24]} 6. Nbd2 {[%emt 0:06:05]} Bc5 {[%emt 0:03:24]} 7. O-O {[%emt 0:03:59]} d6 {[%emt 0:03:50]} 8. h3 {[%emt 0:02:55]} O-O {[%emt 0:05:11]} 9. Re1 {[%emt 0:04:42]} Nd4 {[%emt 0:05:06]} 10. Bc4+ {[%emt 0:02:43]} Kh8 {[%emt 0:01:43]} 11. c3 {[%emt 0:03:54]} Ne6 {[%emt 0:03:22]} 12. Nf1 {[%emt 0:10:18]} Nh5 {[%emt 0:05:09]} 13. Be3 {[%emt 0:04:30]} Bxe3 {[%emt 0:06:03]} 14. Nxe3 {[%emt 0:00:23]} Nef4 {[%emt 0:02:44]} 15. Nd5 {[%emt 0:07:55]} Qe8 {[%emt 0:23:11]} 16. Nxf4 {[%emt 0:09:03]} Nxf4 {[%emt 0:01:50]} 17. Nh4 {[%emt 0:02:47]} Qe7 {[%emt 0:07:22]} 18. Nf3 {[%emt 0:03:06]} Qf6 {[%emt 0:03:56]} 19. Kh2 {[%emt 0:06:13]} Nxh3 {[%emt 0:03:52]} 20. gxh3 {[%emt 0:01:10]} Qxf3 {[%emt 0:00:25]} 21. Qxf3 {[%emt 0:00:19]} Rxf3 {[%emt 0:00:01]} 22. Kg2 {[%emt 0:00:31]} Rxh3 {[%emt 0:00:26]} 23. Rg1 {[%emt 0:03:12]} Bd7 {[%emt 0:03:08]} 24. Kf1 {[%emt 0:02:32]} Rf8 {[%emt 0:04:32]} 25. Ke2 {[%emt 0:01:00]} Rh2 {[%emt 0:01:28]} 26. Raf1 {[%emt 0:00:57]} Bh3 {[%emt 0:00:29]} 27. Rb1 {[%emt 0:01:29]} Rfxf2+ {[%emt 0:01:45]} 28. Ke3 {[%emt 0:02:14]} h5 {[%emt 0:02:49]} 29. Rh1 {[%emt 0:02:24]} Bg4 {[%emt 0:01:02]} 30. Rxh2 {[%emt 0:00:22]} Rxh2 31. b4 {[%emt 0:01:11]} Rc2 {[%emt 0:03:00]} 32. Kd3 {[%emt 0:01:13]} Rf2 {[%emt 0:00:55]} 33. Ke3 {[%emt 0:01:26]} Rf3+ {[%emt 0:00:52]} 34. Kd2 {[%emt 0:00:16]} h4 {[%emt 0:00:51]} 35. Be2 {[%emt 0:00:43]} Rf2 {[%emt 0:00:10]} 36. Re1 {[%emt 0:00:29]} Rxe2+ {[%emt 0:00:08]} 37. Rxe2 {[%emt 0:00:12]} Bxe2 {[%emt 0:00:05]} 38. Kxe2 {[%emt 0:00:10]} g5 {[%emt 0:00:34]} 39. Kf2 {[%emt 0:00:05]} g4 {[%emt 0:00:08]} 40. Kg2 {[%emt 0:00:10]} Kg7 {[%emt 0:00:07]} 41. Kh2 {[%emt 0:30:09]} Kg6 {[%emt 0:30:07]} 42. Kg2 {[%emt 0:00:08]} Kg5 {[%emt 0:00:06]} 43. Kf2 {[%emt 0:00:31]} Kf4 {[%emt 0:00:07]} 44. Kg2 {[%emt 0:00:07]} h3+ {[%emt 0:00:20]} 45. Kh2 {[%emt 0:00:10]} Kf3 {[%emt 0:00:09]} 46. Kg1 {[%emt 0:00:10]} g3 {[%emt 0:00:12]} 0-1

[Event "CZE-ch Youth G16 2022"]
[Site "Luhacovice"]
[Date "2022.03.12"]
[Round "1.5"]
[White "Markova, Karolina"]
[Black "Sehnoutkova, Laura"]
[Result "1-0"]
[ECO "B25"]
[WhiteElo "1589"]
[BlackElo "1126"]
[Annotator "NA"]
[PlyCount "81"]
[EventDate "2022.03.12"]
[EventType "swiss"]
[EventCountry "CZE"]
[SourceTitle "playchess.com"]
[Source "ChessBase"]
[SourceQuality "1"]
[TimeControl "40/5400+30:1800+30"]

1. e4 {[%emt 0:00:04]} c5 {[%emt 0:00:08]} 2. Nc3 {[%emt 0:00:04]} Nc6 {[%emt 0:00:11]} 3. g3 {[%emt 0:00:13]} g6 {[%emt 0:00:47]} 4. Bg2 {[%emt 0:00:05]} Bg7 {[%emt 0:00:13]} 5. d3 {[%emt 0:00:16]} d6 {[%emt 0:01:15]} 6. f4 {[%emt 0:00:31]} Nf6 {[%emt 0:03:19]} 7. Nf3 {[%emt 0:00:05]} Bd7 {[%emt 0:05:30]} 8. O-O {[%emt 0:00:17]} Rb8 {[%emt 0:03:11]} 9. h3 {[%emt 0:02:25]} O-O {[%emt 0:05:21]} 10. g4 {[%emt 0:00:37]} b5 {[%emt 0:03:55]} 11. Ne2 {[%emt 0:01:47]} Ne8 {[%emt 0:05:27]} 12. f5 {[%emt 0:01:42]} Nc7 {[%emt 0:01:27]} 13. Qe1 {[%emt 0:07:32]} Ne5 {[%emt 0:11:54]} 14. Nxe5 {[%emt 0:05:58]} Bxe5 {[%emt 0:00:59]} 15. Rb1 {[%emt 0:01:21]} e6 {[%emt 0:03:08]} 16. Bh6 {[%emt 0:00:53]} Re8 {[%emt 0:05:12]} 17. fxg6 {[%emt 0:01:31]} hxg6 {[%emt 0:02:16]} 18. Qf2 {[%emt 0:02:09]} Qe7 {[%emt 0:01:40]} 19. Bf4 {[%emt 0:12:40]} Bxf4 {[%emt 0:02:52]} 20. Qxf4 {[%emt 0:01:10]} Kg7 {[%emt 0:03:48]} 21. g5 {[%emt 0:07:35]} e5 {[%emt 0:03:03]} 22. Qg3 {[%emt 0:00:39]} Rh8 {[%emt 0:01:44]} 23. Rf3 {[%emt 0:18:49]} Ne6 {[%emt 0:03:45]} 24. h4 {[%emt 0:01:16]} Rh5 {[%emt 0:01:15]} 25. Rbf1 {[%emt 0:06:38]} Rf8 {[%emt 0:02:07]} 26. Qf2 {[%emt 0:06:12]} Be8 {[%emt 0:02:27]} 27. Ng3 {[%emt 0:00:29]} Rh7 {[%emt 0:06:00]} 28. Rf6 {[%emt 0:06:43]} Nf4 {[%emt 0:04:07]} 29. Ne2 {[%emt 0:14:42]} Nxe2+ {[%emt 0:04:58]} 30. Qxe2 {[%emt 0:00:03]} Rxh4 {[%emt 0:00:56]} 31. Qd2 {[%emt 0:00:17]} b4 {[%emt 0:01:11]} 32. c3 {[%emt 0:00:24]} bxc3 {[%emt 0:01:03]} 33. bxc3 {[%emt 0:00:05]} Qc7 {[%emt 0:01:37]} 34. d4 {[%emt 0:00:46]} cxd4 {[%emt 0:01:06]} 35. cxd4 {[%emt 0:00:07]} Qb6 {[%emt 0:02:35]} 36. Rd1 {[%emt 0:01:08]} Ba4 {[%emt 0:04:13]} 37. Rc1 {[%emt 0:01:00]} Bc6 {[%emt 0:01:47]} 38. Rxd6 Rc8 {[%emt 0:01:04]} 39. Qf2 {[%emt 0:01:09]} Rf4 {[%emt 0:00:38]} 40. Qd2 {[%emt 0:00:27]} exd4 {[%emt 0:00:57]} 41. Qxf4 {[%emt 0:30:38]} 1-0

[Event "CZE-ch Youth G16 2022"]
[Site "Luhacovice"]
[Date "2022.03.12"]
[Round "1.7"]
[White "Hosova, Sandra"]
[Black "Sargsyan, Anna B."]
[Result "1-0"]
[ECO "A40"]
[WhiteElo "1545"]
[BlackElo "1602"]
[Annotator "NA"]
[PlyCount "67"]
[EventDate "2022.03.12"]
[EventType "swiss"]
[EventCountry "CZE"]
[SourceTitle "playchess.com"]
[Source "ChessBase"]
[SourceQuality "1"]
[TimeControl "40/5400+30:1800+30"]

1. d4 {[%emt 0:00:10]} Nc6 {[%emt 0:00:24]} 2. Nf3 {[%emt 0:01:52]} e6 {[%emt 0:01:51]} 3. Bf4 {[%emt 0:01:34]} d5 {[%emt 0:05:02]} 4. e3 {[%emt 0:03:01]} Bd6 {[%emt 0:01:51]} 5. Ne5 {[%emt 0:04:15]} Bd7 {[%emt 0:04:19]} 6. Nd2 {[%emt 0:06:00]} f6 {[%emt 0:01:51]} 7. Qh5+ {[%emt 0:02:06]} g6 {[%emt 0:07:09]} 8. Nxg6 {[%emt 0:01:02]} hxg6 {[%emt 0:18:41]} 9. Qxh8 {[%emt 0:00:56]} Nce7 {[%emt 0:04:56]} 10. Bh6 {[%emt 0:06:00]} Bc6 {[%emt 0:08:39]} 11. Bg7 {[%emt 0:11:11]} Kd7 {[%emt 0:02:18]} 12. Bxf6 {[%emt 0:05:44]} Nxf6 {[%emt 0:01:55]} 13. Qxf6 {[%emt 0:00:13]} Qf8 {[%emt 0:01:29]} 14. Qxf8 {[%emt 0:01:44]} Rxf8 {[%emt 0:00:12]} 15. Bd3 {[%emt 0:08:16]} Rh8 {[%emt 0:02:47]} 16. h3 {[%emt 0:10:03]} Kc8 {[%emt 0:01:44]} 17. Ke2 {[%emt 0:02:43]} e5 {[%emt 0:02:02]} 18. dxe5 {[%emt 0:02:16]} Bxe5 {[%emt 0:00:19]} 19. c3 {[%emt 0:00:33]} Kb8 {[%emt 0:01:11]} 20. Nf3 {[%emt 0:03:45]} Bf6 {[%emt 0:00:56]} 21. Nd4 {[%emt 0:02:13]} Bd7 {[%emt 0:00:50]} 22. Rad1 {[%emt 0:04:44]} c5 {[%emt 0:01:02]} 23. Nc2 {[%emt 0:06:28]} c4 {[%emt 0:00:36]} 24. Bxc4 {[%emt 0:00:27]} Bf5 {[%emt 0:03:38]} 25. Bd3 {[%emt 0:01:15]} Rd8 {[%emt 0:01:45]} 26. Bxf5 {[%emt 0:01:09]} Nxf5 {[%emt 0:00:38]} 27. Nb4 {[%emt 0:00:44]} Ne7 {[%emt 0:01:12]} 28. Rd2 {[%emt 0:02:32]} a5 {[%emt 0:03:53]} 29. Nd3 {[%emt 0:00:21]} Nf5 {[%emt 0:01:37]} 30. Nf4 {[%emt 0:00:47]} Ne7 {[%emt 0:01:42]} 31. Rhd1 {[%emt 0:00:20]} Kc8 {[%emt 0:02:19]} 32. Nxd5 {[%emt 0:00:16]} Nxd5 {[%emt 0:01:04]} 33. Rxd5 {[%emt 0:00:06]} Rxd5 {[%emt 0:02:57]} 34. Rxd5 {[%emt 0:00:08]} 1-0

[Event "CZE-ch Youth G16 2022"]
[Site "Luhacovice"]
[Date "2022.03.13"]
[Round "2.1"]
[White "Sulcova, Tereza Radmila"]
[Black "Voriskova, Anna"]
[Result "0-1"]
[ECO "A01"]
[WhiteElo "1555"]
[BlackElo "1812"]
[Annotator "NA"]
[PlyCount "92"]
[EventDate "2022.03.12"]
[EventType "swiss"]
[EventCountry "CZE"]
[SourceTitle "playchess.com"]
[Source "ChessBase"]
[SourceQuality "1"]
[TimeControl "40/5400+30:1800+30"]

1. b3 {[%emt 0:00:26]} e5 {[%emt 0:05:09]} 2. Bb2 {[%emt 0:00:41]} Nc6 {[%emt 0:00:07]} 3. e3 {[%emt 0:00:22]} Nf6 {[%emt 0:01:38]} 4. Bb5 {[%emt 0:01:26]} Bd6 {[%emt 0:01:17]} 5. Nf3 {[%emt 0:02:13]} e4 {[%emt 0:09:08]} 6. Nd4 {[%emt 0:03:29]} Nxd4 {[%emt 0:00:36]} 7. Bxd4 $11 {[%emt 0:00:10]} c6 {[%emt 0:04:10]} 8. Be2 {[%emt 0:01:05]} O-O {[%emt 0:02:45]} 9. h3 {[%emt 0:10:15]} Re8 {[%emt 0:04:24]} 10. O-O {[%emt 0:07:26]} Bb8 {[%emt 0:03:21]} 11. d3 {[%emt 0:09:57]} d5 {[%emt 0:02:48]} 12. Qc1 {[%emt 0:08:41]} Qd6 {[%emt 0:02:59]} 13. f4 {[%emt 0:03:50]} exf3 {[%emt 0:00:39]} 14. Rxf3 {[%emt 0:00:24]} Qh2+ {[%emt 0:02:05]} 15. Kf2 {[%emt 0:00:09]} Nd7 {[%emt 0:14:48]} 16. Qg1 {[%emt 0:05:14]} Qd6 {[%emt 0:00:11]} 17. Nd2 {[%emt 0:04:20]} c5 {[%emt 0:04:35]} 18. Bb2 {[%emt 0:01:07]} Ne5 {[%emt 0:00:26]} 19. Rf4 {[%emt 0:01:43]} d4 {[%emt 0:04:20]} 20. Ne4 {[%emt 0:03:06]} Qc6 {[%emt 0:17:48]} 21. Bf3 {[%emt 0:06:49]} Nxf3 {[%emt 0:00:40]} 22. Rxf3 {[%emt 0:00:17]} f5 {[%emt 0:01:25]} 23. Ng3 {[%emt 0:01:52]} Rxe3 {[%emt 0:00:46]} 24. Re1 {[%emt 0:01:02]} f4 {[%emt 0:01:56]} 25. Ne4 {[%emt 0:00:20]} Bf5 {[%emt 0:01:29]} 26. Nd2 {[%emt 0:00:13]} Bc7 {[%emt 0:00:59]} 27. Nc4 {[%emt 0:01:13]} Rxe1 {[%emt 0:00:20]} 28. Qxe1 {[%emt 0:00:26]} Re8 {[%emt 0:00:12]} 29. Qd2 {[%emt 0:00:04]} b5 {[%emt 0:00:31]} 30. Na5 {[%emt 0:00:42]} Qe6 {[%emt 0:01:34]} 31. b4 {[%emt 0:02:36]} Qxa2 {[%emt 0:01:11]} 32. Bc1 {[%emt 0:00:18]} Bc8 {[%emt 0:01:34]} 33. Kf1 {[%emt 0:00:38]} cxb4 {[%emt 0:04:57]} 34. Nb3 {[%emt 0:00:16]} Bb7 {[%emt 0:00:44]} 35. Rf2 {[%emt 0:00:10]} Bd6 {[%emt 0:02:40]} 36. Nxd4 {[%emt 0:01:15]} Qd5 {[%emt 0:00:16]} 37. Ne2 {[%emt 0:01:20]} f3 {[%emt 0:02:17]} 38. Rxf3 {[%emt 0:00:35]} Qh5 {[%emt 0:00:40]} 39. Rf2 {[%emt 0:04:19]} a5 {[%emt 0:00:25]} 40. Nf4 {[%emt 0:03:25]} Bxf4 {[%emt 0:01:08]} 41. Rxf4 {[%emt 0:30:11]} Bxg2+ {[%emt 0:31:07]} 42. Kg1 {[%emt 0:01:33]} Bxh3 {[%emt 0:00:47]} 43. Rf2 {[%emt 0:01:55]} Re6 {[%emt 0:00:00]} 44. Qf4 {[%emt 0:00:00]} Rg6+ {[%emt 0:00:00]} 45. Kh2 {[%emt 0:00:00]} Bf1+ {[%emt 0:00:00]} 46. Qh4 {[%emt 0:00:00]} Qxh4# {[%emt 0:00:00]} 0-1

[Event "CZE-ch Youth G16 2022"]
[Site "Luhacovice"]
[Date "2022.03.13"]
[Round "2.2"]
[White "Fizerova, Lucie"]
[Black "Markova, Karolina"]
[Result "1/2-1/2"]
[ECO "A16"]
[WhiteElo "1804"]
[BlackElo "1589"]
[Annotator "NA"]
[PlyCount "84"]
[EventDate "2022.03.12"]
[EventType "swiss"]
[EventCountry "CZE"]
[SourceTitle "playchess.com"]
[Source "ChessBase"]
[SourceQuality "1"]
[TimeControl "40/5400+30:1800+30"]

1. c4 Nf6 2. Nc3 g6 3. g3 Bg7 4. Bg2 c5 {[%emt 0:01:38]} 5. e4 {[%emt 0:01:41]} d6 {[%emt 0:00:06]} 6. Nge2 {[%emt 0:01:27]} O-O {[%emt 0:00:30]} 7. O-O {[%emt 0:01:17]} Nc6 {[%emt 0:01:57]} 8. a3 {[%emt 0:01:38]} Rb8 {[%emt 0:05:42]} 9. Rb1 {[%emt 0:02:09]} a5 {[%emt 0:01:17]} 10. d3 {[%emt 0:01:48]} Bd7 {[%emt 0:02:29]} 11. h3 {[%emt 0:02:09]} Ne8 {[%emt 0:03:56]} 12. Be3 {[%emt 0:05:03]} Nc7 {[%emt 0:02:11]} 13. Qd2 {[%emt 0:01:44]} b5 {[%emt 0:03:00]} 14. Bh6 {[%emt 0:12:22]} b4 {[%emt 0:02:26]} 15. Bxg7 {[%emt 0:00:38]} Kxg7 {[%emt 0:00:13]} 16. axb4 {[%emt 0:00:57]} axb4 {[%emt 0:00:25]} 17. Nd1 {[%emt 0:00:58]} Ne6 {[%emt 0:01:10]} 18. f4 {[%emt 0:02:03]} Ned4 {[%emt 0:02:16]} 19. f5 {[%emt 0:02:55]} Qa5 {[%emt 0:13:45]} 20. Nxd4 {[%emt 0:04:31]} Nxd4 {[%emt 0:01:24]} 21. Ne3 {[%emt 0:03:00]} f6 {[%emt 0:12:39]} 22. Qf2 {[%emt 0:13:38]} g5 {[%emt 0:03:05]} 23. Ra1 {[%emt 0:00:59]} Qd8 {[%emt 0:01:31]} 24. Ra7 {[%emt 0:11:26]} Nc6 {[%emt 0:04:33]} 25. Ra6 {[%emt 0:00:47]} Ra8 {[%emt 0:01:03]} 26. Rfa1 {[%emt 0:02:50]} Rxa6 {[%emt 0:00:25]} 27. Rxa6 {[%emt 0:00:02]} Qc8 {[%emt 0:05:12]} 28. Ra1 {[%emt 0:00:31]} Qb7 {[%emt 0:01:05]} 29. Kh2 {[%emt 0:07:23]} Ra8 {[%emt 0:06:38]} 30. Rxa8 {[%emt 0:03:08]} Qxa8 {[%emt 0:00:04]} 31. Nd5 {[%emt 0:00:08]} Qa7 {[%emt 0:01:37]} 32. h4 {[%emt 0:02:48]} h6 {[%emt 0:08:15]} 33. Qe2 {[%emt 0:04:11]} Be8 {[%emt 0:01:37]} 34. Qd2 {[%emt 0:07:37]} Bh5 {[%emt 0:02:51]} 35. Kh3 {[%emt 0:03:19]} Ne5 {[%emt 0:01:41]} 36. Ne3 {[%emt 0:00:43]} Qa2 {[%emt 0:04:50]} 37. g4 {[%emt 0:00:39]} Bf7 {[%emt 0:00:50]} 38. h5 {[%emt 0:01:20]} Qb1 {[%emt 0:02:27]} 39. Bf1 {[%emt 0:01:14]} Nf3 {[%emt 0:03:52]} 40. Qd1 {[%emt 0:00:42]} Qxd1 {[%emt 0:00:50]} 41. Nxd1 {[%emt 0:30:02]} Ne5 {[%emt 0:30:26]} 42. Ne3 {[%emt 0:00:00]} Be8 1/2-1/2

[Event "CZE-ch Youth G16 2022"]
[Site "Luhacovice"]
[Date "2022.03.13"]
[Round "2.3"]
[White "Nespora, Tatana"]
[Black "Havelkova, Beata"]
[Result "1-0"]
[ECO "B43"]
[WhiteElo "1452"]
[BlackElo "1666"]
[Annotator "NA"]
[PlyCount "47"]
[EventDate "2022.03.12"]
[EventType "swiss"]
[EventCountry "CZE"]
[SourceTitle "playchess.com"]
[Source "ChessBase"]
[SourceQuality "1"]
[TimeControl "40/5400+30:1800+30"]

1. e4 {[%emt 0:00:20]} c5 {[%emt 0:00:07]} 2. Nf3 {[%emt 0:00:28]} e6 {[%emt 0:00:15]} 3. d4 {[%emt 0:00:51]} cxd4 {[%emt 0:00:16]} 4. Nxd4 {[%emt 0:00:42]} a6 {[%emt 0:00:17]} 5. Nc3 {[%emt 0:01:27]} Qc7 {[%emt 0:00:29]} 6. Bd3 {[%emt 0:01:20]} Nf6 {[%emt 0:03:46]} 7. O-O {[%emt 0:03:23]} Nc6 {[%emt 0:05:05]} 8. Nxc6 {[%emt 0:02:33]} bxc6 {[%emt 0:01:09]} 9. f4 {[%emt 0:02:37]} a5 {[%emt 0:08:59]} 10. e5 {[%emt 0:15:19]} Nd5 {[%emt 0:02:08]} 11. Ne4 {[%emt 0:01:17]} Qb6+ {[%emt 0:06:16]} 12. Kh1 {[%emt 0:02:33]} Ba6 {[%emt 0:05:23]} 13. Qf3 {[%emt 0:12:15]} Bxd3 {[%emt 0:05:00]} 14. cxd3 {[%emt 0:00:56]} f5 {[%emt 0:06:42]} 15. exf6 {[%emt 0:02:12]} gxf6 {[%emt 0:02:40]} 16. b3 {[%emt 0:04:16]} O-O-O {[%emt 0:09:35]} 17. Bb2 {[%emt 0:04:46]} Be7 {[%emt 0:02:22]} 18. a3 {[%emt 0:02:18]} Qxb3 {[%emt 0:11:07]} 19. Rab1 {[%emt 0:01:37]} Qa4 {[%emt 0:01:54]} 20. Qf2 {[%emt 0:03:38]} d6 {[%emt 0:05:48]} 21. Nxf6 {[%emt 0:08:39]} c5 {[%emt 0:04:59]} 22. Nxd5 {[%emt 0:04:05]} exd5 {[%emt 0:00:10]} 23. Bxh8 {[%emt 0:00:47]} Rxh8 {[%emt 0:00:09]} 24. Qb2 {[%emt 0:00:52]} 1-0